[Event "Titled Tuesday Blitz January 17 Late 2023"]
[White "Bikuzhin, Maksim"]
[Black "Tomb, Maroun"]
[WhiteFideId "24128015"]
[BlackFideId "5300398"]
[WhiteElo "2279"]
[BlackElo "2090"]
[Result "1/2-1/2"]
[Round "06"]
[TimeControl "180+2"]
[Date "2023.01.17"]
[WhiteClock "0:00:24"]
[BlackClock "0:00:30"]

1. e4 {[%clk 0:03:00]}  d6 {[%clk 0:03:00]} 2. d4 {[%clk 0:03:00]}  Nf6 {[%clk 0:03:00]} 3. Nc3 {[%clk 0:02:59]}  e5 {[%clk 0:03:01]} 4. Nf3 {[%clk 0:02:58]}  Nbd7 {[%clk 0:03:01]} 5. g4 {[%clk 0:02:57]}  Nxg4 {[%clk 0:03:01]} 6. Rg1 {[%clk 0:02:56]}  Ngf6 {[%clk 0:03:01]} 7. Bc4 {[%clk 0:02:55]}  h6 {[%clk 0:03:02]} 8. Be3 {[%clk 0:02:51]}  c6 {[%clk 0:03:02]} 9. a4 {[%clk 0:02:50]}  Qc7 {[%clk 0:02:57]} 10. Qd3 {[%clk 0:02:48]}  g6 {[%clk 0:02:51]} 11. dxe5 {[%clk 0:02:38]}  Nxe5 {[%clk 0:02:46]} 12. Nxe5 {[%clk 0:02:38]}  dxe5 {[%clk 0:02:47]} 13. O-O-O {[%clk 0:02:36]}  Bg4 {[%clk 0:02:19]} 14. Rd2 {[%clk 0:02:32]}  Bb4 {[%clk 0:02:18]} 15. Bb3 {[%clk 0:02:26]}  Bxc3 {[%clk 0:02:15]} 16. Qxc3 {[%clk 0:01:58]}  Nxe4 {[%clk 0:01:16]} 17. Bxf7+ {[%clk 0:01:57]}  Kxf7 {[%clk 0:01:16]} 18. Qc4+ {[%clk 0:01:55]}  Be6 {[%clk 0:01:17]} 19. Qxe4 {[%clk 0:01:54]}  Bf5 {[%clk 0:01:16]} 20. Qh4 {[%clk 0:01:23]}  Qe7 {[%clk 0:01:09]} 21. Qc4+ {[%clk 0:01:12]}  Kg7 {[%clk 0:01:09]} 22. f4 {[%clk 0:01:09]}  Rhd8 {[%clk 0:00:56]} 23. fxe5 {[%clk 0:01:03]}  Rxd2 {[%clk 0:00:52]} 24. Bxd2 {[%clk 0:01:04]}  Rd8 {[%clk 0:00:50]} 25. Qf4 {[%clk 0:00:58]}  Qc5 {[%clk 0:00:42]} 26. Qxh6+ {[%clk 0:00:53]}  Kf7 {[%clk 0:00:42]} 27. e6+ {[%clk 0:00:45]}  Kxe6 {[%clk 0:00:40]} 28. Re1+ {[%clk 0:00:42]}  Kd7 {[%clk 0:00:41]} 29. Bc3 {[%clk 0:00:37]}  Kc8 {[%clk 0:00:41]} 30. Qf4 {[%clk 0:00:31]}  Qd5 {[%clk 0:00:33]} 31. b3 {[%clk 0:00:28]}  b6 {[%clk 0:00:32]} 32. Kb2 {[%clk 0:00:28]}  a5 {[%clk 0:00:31]} 33. Qf2 {[%clk 0:00:25]}  Kb7 {[%clk 0:00:29]} 34. Re7+ {[%clk 0:00:22]}  Rd7 {[%clk 0:00:29]} 35. Re8 {[%clk 0:00:22]}  Rd8 {[%clk 0:00:29]} 36. Re7+ {[%clk 0:00:23]}  Rd7 {[%clk 0:00:30]} 37. Re8 {[%clk 0:00:23]}  Rd8 {[%clk 0:00:30]} 38. Re7+ {[%clk 0:00:24]} 1/2-1/2


[Site "https://www.chess.com"]

[Event "Titled Tuesday Blitz January 17 Late 2023"]
[White "Ivanisevic, Ivan"]
[Black "Arenas, David"]
[WhiteFideId "912417"]
[BlackFideId "4403177"]
[WhiteElo "2532"]
[BlackElo "2426"]
[Result "0-1"]
[Round "06"]
[TimeControl "180+2"]
[Date "2023.01.17"]
[WhiteClock "0:00:06"]
[BlackClock "0:00:35"]

1. d4 {[%clk 0:03:00]}  Nf6 {[%clk 0:02:55]} 2. c4 {[%clk 0:03:01]}  e6 {[%clk 0:02:54]} 3. Bf4 {[%clk 0:02:58]}  d5 {[%clk 0:02:51]} 4. cxd5 {[%clk 0:02:58]}  exd5 {[%clk 0:02:51]} 5. e3 {[%clk 0:02:56]}  c6 {[%clk 0:02:49]} 6. Nc3 {[%clk 0:02:54]}  Bd6 {[%clk 0:02:49]} 7. Qf3 {[%clk 0:02:50]}  O-O {[%clk 0:02:46]} 8. Bd3 {[%clk 0:02:50]}  Bxf4 {[%clk 0:02:44]} 9. Qxf4 {[%clk 0:02:49]}  Nbd7 {[%clk 0:02:42]} 10. h3 {[%clk 0:02:48]}  Re8 {[%clk 0:02:42]} 11. g4 {[%clk 0:02:47]}  Nf8 {[%clk 0:02:41]} 12. Nf3 {[%clk 0:02:35]}  Ne6 {[%clk 0:02:30]} 13. Qg3 {[%clk 0:02:31]}  Qc7 {[%clk 0:02:30]} 14. Qxc7 {[%clk 0:02:29]}  Nxc7 {[%clk 0:02:30]} 15. Ne5 {[%clk 0:02:28]}  Nd7 {[%clk 0:02:27]} 16. f4 {[%clk 0:02:22]}  f6 {[%clk 0:02:22]} 17. Nxd7 {[%clk 0:02:21]}  Bxd7 {[%clk 0:02:21]} 18. Kd2 {[%clk 0:02:21]}  Re7 {[%clk 0:02:17]} 19. Rhg1 {[%clk 0:02:19]}  Ne8 {[%clk 0:02:10]} 20. f5 {[%clk 0:02:11]}  Nd6 {[%clk 0:02:06]} 21. Raf1 {[%clk 0:02:09]}  Rae8 {[%clk 0:02:04]} 22. Rf3 {[%clk 0:02:07]}  Kh8 {[%clk 0:01:55]} 23. b3 {[%clk 0:02:06]}  Bc8 {[%clk 0:01:52]} 24. h4 {[%clk 0:02:05]}  Rf8 {[%clk 0:01:48]} 25. Rf4 {[%clk 0:01:58]}  b5 {[%clk 0:01:44]} 26. Rg3 {[%clk 0:01:56]}  a5 {[%clk 0:01:40]} 27. Rgf3 {[%clk 0:01:49]}  Rfe8 {[%clk 0:01:39]} 28. g5 {[%clk 0:01:44]}  Rf8 {[%clk 0:01:26]} 29. Ne2 {[%clk 0:01:38]}  Ref7 {[%clk 0:01:08]} 30. Ng3 {[%clk 0:01:37]}  Re7 {[%clk 0:01:06]} 31. gxf6 {[%clk 0:01:20]}  gxf6 {[%clk 0:01:02]} 32. Nh5 {[%clk 0:01:20]}  Bd7 {[%clk 0:01:01]} 33. Rg4 {[%clk 0:01:12]}  Be8 {[%clk 0:01:00]} 34. Nf4 {[%clk 0:01:11]}  Bf7 {[%clk 0:00:58]} 35. Rfg3 {[%clk 0:01:08]}  Rg8 {[%clk 0:00:57]} 36. h5 {[%clk 0:01:01]}  Rxg4 {[%clk 0:00:55]} 37. Rxg4 {[%clk 0:01:02]}  Re8 {[%clk 0:00:52]} 38. h6 {[%clk 0:00:59]}  Rg8 {[%clk 0:00:51]} 39. Rxg8+ {[%clk 0:00:57]}  Kxg8 {[%clk 0:00:51]} 40. Ne6 {[%clk 0:00:57]}  Bxe6 {[%clk 0:00:48]} 41. fxe6 {[%clk 0:00:58]}  f5 {[%clk 0:00:49]} 42. Ke2 {[%clk 0:00:17]}  Kf8 {[%clk 0:00:49]} 43. Kf3 {[%clk 0:00:17]}  Ke7 {[%clk 0:00:50]} 44. Kf4 {[%clk 0:00:17]}  Kxe6 {[%clk 0:00:50]} 45. Kg5 {[%clk 0:00:17]}  Nf7+ {[%clk 0:00:50]} 46. Kh5 {[%clk 0:00:17]}  Kf6 {[%clk 0:00:50]} 47. Bc2 {[%clk 0:00:16]}  Nd6 {[%clk 0:00:48]} 48. Bd3 {[%clk 0:00:15]}  Ne8 {[%clk 0:00:43]} 49. a4 {[%clk 0:00:15]}  b4 {[%clk 0:00:43]} 50. Ba6 {[%clk 0:00:14]}  Nd6 {[%clk 0:00:42]} 51. Bd3 {[%clk 0:00:13]}  Ne4 {[%clk 0:00:40]} 52. Ba6 {[%clk 0:00:06]}  Nd2 {[%clk 0:00:36]} 53. Bb7 {[%clk 0:00:06]}  Nxb3 {[%clk 0:00:36]} 54. Bxc6 {[%clk 0:00:06]}  Nd2 {[%clk 0:00:34]} 55. Bxd5 {[%clk 0:00:06]}  b3 {[%clk 0:00:35]} 0-1


[Site "https://www.chess.com"]

[Event "Titled Tuesday Blitz January 17 Late 2023"]
[White "Fernandez Guillen, Ernesto J."]
[Black "Martinez Reyes, Pedro Ramon"]
[WhiteFideId "3512428"]
[BlackFideId "3901807"]
[WhiteElo "2477"]
[BlackElo "2376"]
[Result "1-0"]
[Round "06"]
[TimeControl "180+2"]
[Date "2023.01.17"]
[WhiteClock "0:01:53"]
[BlackClock "0:01:41"]

1. e4 {[%clk 0:03:00]}  e6 {[%clk 0:03:00]} 2. Nf3 {[%clk 0:03:00]}  d5 {[%clk 0:03:00]} 3. Nc3 {[%clk 0:03:00]}  Nf6 {[%clk 0:02:59]} 4. e5 {[%clk 0:03:01]}  Ne4 {[%clk 0:02:59]} 5. d4 {[%clk 0:03:02]}  c5 {[%clk 0:02:58]} 6. Bd3 {[%clk 0:03:00]}  Nxc3 {[%clk 0:02:58]} 7. bxc3 {[%clk 0:03:01]}  c4 {[%clk 0:02:59]} 8. Be2 {[%clk 0:03:01]}  Qa5 {[%clk 0:03:00]} 9. Bd2 {[%clk 0:03:01]}  Ba3 {[%clk 0:03:00]} 10. Rb1 {[%clk 0:03:00]}  Nc6 {[%clk 0:02:57]} 11. O-O {[%clk 0:03:00]}  Bd7 {[%clk 0:02:58]} 12. Ng5 {[%clk 0:02:58]}  h6 {[%clk 0:02:58]} 13. Nh3 {[%clk 0:02:57]}  b5 {[%clk 0:02:54]} 14. f4 {[%clk 0:02:54]}  g6 {[%clk 0:02:54]} 15. g4 {[%clk 0:02:51]}  a6 {[%clk 0:02:52]} 16. f5 {[%clk 0:02:49]}  gxf5 {[%clk 0:02:53]} 17. gxf5 {[%clk 0:02:49]}  O-O-O {[%clk 0:02:54]} 18. fxe6 {[%clk 0:02:47]}  fxe6 {[%clk 0:02:51]} 19. Bh5 {[%clk 0:02:45]}  Rdf8 {[%clk 0:02:47]} 20. Nf4 {[%clk 0:02:33]}  Rhg8+ {[%clk 0:02:33]} 21. Kh1 {[%clk 0:02:32]}  Qd8 {[%clk 0:02:23]} 22. Ng6 {[%clk 0:02:16]}  Rxf1+ {[%clk 0:02:23]} 23. Qxf1 {[%clk 0:02:17]}  Be8 {[%clk 0:02:08]} 24. Qh3 {[%clk 0:02:13]}  Qd7 {[%clk 0:02:08]} 25. Rg1 {[%clk 0:02:10]}  Bxg6 {[%clk 0:02:04]} 26. Rxg6 {[%clk 0:02:05]}  Rxg6 {[%clk 0:02:03]} 27. Bxg6 {[%clk 0:02:06]}  b4 {[%clk 0:01:54]} 28. Qxh6 {[%clk 0:01:53]}  bxc3 {[%clk 0:01:48]} 29. Bxc3 {[%clk 0:01:54]}  Bb4 {[%clk 0:01:41]} 30. Bxb4 {[%clk 0:01:53]}  Nxb4 {[%clk 0:01:41]} 31. Qf8+ {[%clk 0:01:53]} 1-0


[Site "https://www.chess.com"]

[Event "Titled Tuesday Blitz January 17 Late 2023"]
[White "Pasti, Aron"]
[Black "Ozer, Omer Faruk"]
[WhiteFideId "785857"]
[BlackFideId "6354564"]
[WhiteElo "2361"]
[BlackElo "2360"]
[Result "1-0"]
[Round "06"]
[TimeControl "180+2"]
[Date "2023.01.17"]
[WhiteClock "0:01:49"]
[BlackClock "0:01:59"]

1. e4 {[%clk 0:02:58]}  c5 {[%clk 0:03:00]} 2. Nf3 {[%clk 0:02:59]}  g6 {[%clk 0:03:00]} 3. c4 {[%clk 0:02:58]}  Bg7 {[%clk 0:02:55]} 4. d4 {[%clk 0:02:58]}  cxd4 {[%clk 0:02:56]} 5. Nxd4 {[%clk 0:02:59]}  Nc6 {[%clk 0:02:56]} 6. Be3 {[%clk 0:02:58]}  Nf6 {[%clk 0:02:56]} 7. Nc3 {[%clk 0:02:58]}  O-O {[%clk 0:02:57]} 8. Be2 {[%clk 0:02:58]}  d6 {[%clk 0:02:56]} 9. O-O {[%clk 0:02:59]}  Bd7 {[%clk 0:02:55]} 10. Rc1 {[%clk 0:02:59]}  Nxd4 {[%clk 0:02:54]} 11. Bxd4 {[%clk 0:03:00]}  a5 {[%clk 0:02:54]} 12. f4 {[%clk 0:02:59]}  a4 {[%clk 0:02:52]} 13. e5 {[%clk 0:02:54]}  dxe5 {[%clk 0:02:51]} 14. fxe5 {[%clk 0:02:55]}  Ne8 {[%clk 0:02:51]} 15. Bf3 {[%clk 0:02:55]}  Bc6 {[%clk 0:02:48]} 16. Nd5 {[%clk 0:02:41]}  Bxd5 {[%clk 0:02:32]} 17. cxd5 {[%clk 0:02:38]}  Qa5 {[%clk 0:02:28]} 18. Rc5 {[%clk 0:02:15]}  Qd8 {[%clk 0:02:05]} 19. Qc2 {[%clk 0:02:09]}  e6 {[%clk 0:02:00]} 20. Rd1 {[%clk 0:01:56]}  exd5 {[%clk 0:02:00]} 21. Rxd5 {[%clk 0:01:57]}  Qg5 {[%clk 0:01:58]} 22. Bc5 {[%clk 0:01:53]}  Bxe5 {[%clk 0:01:58]} 23. Bxf8 {[%clk 0:01:50]}  Kxf8 {[%clk 0:01:59]} 24. Qc5+ {[%clk 0:01:49]} 1-0


[Site "https://www.chess.com"]

[Event "Titled Tuesday Blitz January 17 Late 2023"]
[White "Haydon, David L"]
[Black "Vovk, Orest"]
[WhiteFideId "415405"]
[BlackFideId "14113490"]
[WhiteElo "2253"]
[BlackElo "2315"]
[Result "0-1"]
[Round "06"]
[TimeControl "180+2"]
[Date "2023.01.17"]
[WhiteClock "0:01:52"]
[BlackClock "0:01:54"]

1. e4 {[%clk 0:02:53]}  g5 {[%clk 0:02:59]} 2. Nc3 {[%clk 0:02:53]}  Bg7 {[%clk 0:02:59]} 3. d4 {[%clk 0:02:53]}  c5 {[%clk 0:02:58]} 4. d5 {[%clk 0:02:52]}  Bxc3+ {[%clk 0:02:58]} 5. bxc3 {[%clk 0:02:52]}  h6 {[%clk 0:02:58]} 6. h4 {[%clk 0:02:52]}  Qa5 {[%clk 0:02:56]} 7. hxg5 {[%clk 0:02:48]}  hxg5 {[%clk 0:02:55]} 8. Rxh8 {[%clk 0:02:45]}  Qxc3+ {[%clk 0:02:55]} 9. Bd2 {[%clk 0:02:45]}  Qxh8 {[%clk 0:02:56]} 10. Rb1 {[%clk 0:02:43]}  Qd4 {[%clk 0:02:47]} 11. f3 {[%clk 0:02:40]}  Qxg1 {[%clk 0:02:46]} 12. c3 {[%clk 0:02:36]}  g4 {[%clk 0:02:39]} 13. fxg4 {[%clk 0:02:33]}  Nf6 {[%clk 0:02:36]} 14. Qf3 {[%clk 0:02:30]}  d6 {[%clk 0:02:35]} 15. g5 {[%clk 0:02:29]}  Ng4 {[%clk 0:02:35]} 16. Bf4 {[%clk 0:02:23]}  Nh2 {[%clk 0:02:16]} 17. Qf2 {[%clk 0:02:09]}  Qxf1+ {[%clk 0:02:12]} 18. Qxf1 {[%clk 0:02:09]}  Nxf1 {[%clk 0:02:13]} 19. Kxf1 {[%clk 0:02:09]}  Nd7 {[%clk 0:02:11]} 20. Kf2 {[%clk 0:02:09]}  Nf8 {[%clk 0:02:11]} 21. Ke3 {[%clk 0:02:04]}  Ng6 {[%clk 0:02:11]} 22. Bg3 {[%clk 0:02:04]}  b6 {[%clk 0:02:10]} 23. a4 {[%clk 0:02:03]}  Bd7 {[%clk 0:02:09]} 24. a5 {[%clk 0:02:01]}  bxa5 {[%clk 0:02:06]} 25. e5 {[%clk 0:01:57]}  Nxe5 {[%clk 0:02:04]} 26. Bxe5 {[%clk 0:01:57]}  dxe5 {[%clk 0:02:04]} 27. Rh1 {[%clk 0:01:57]}  O-O-O {[%clk 0:02:03]} 28. Ke4 {[%clk 0:01:55]}  f6 {[%clk 0:01:58]} 29. Rh6 {[%clk 0:01:54]}  fxg5 {[%clk 0:01:55]} 30. Kxe5 {[%clk 0:01:54]}  a4 {[%clk 0:01:54]} 31. Ra6 {[%clk 0:01:52]}  Kb7 {[%clk 0:01:54]} 0-1


[Site "https://www.chess.com"]

[Event "Titled Tuesday Blitz January 17 Late 2023"]
[White "Djokic, Mihailo"]
[Black "Rojas Salas, Steven"]
[WhiteFideId "976440"]
[BlackFideId "3819434"]
[WhiteElo "2192"]
[BlackElo "2217"]
[Result "0-1"]
[Round "06"]
[TimeControl "180+2"]
[Date "2023.01.17"]
[WhiteClock "0:00:02"]
[BlackClock "0:00:23"]

1. e4 {[%clk 0:03:00]}  e6 {[%clk 0:02:39]} 2. d4 {[%clk 0:03:00]}  d5 {[%clk 0:02:32]} 3. Nc3 {[%clk 0:02:51]}  dxe4 {[%clk 0:02:31]} 4. Nxe4 {[%clk 0:02:51]}  Be7 {[%clk 0:02:30]} 5. Nf3 {[%clk 0:02:51]}  Nf6 {[%clk 0:02:30]} 6. Nxf6+ {[%clk 0:02:51]}  gxf6 {[%clk 0:02:31]} 7. Bd3 {[%clk 0:02:50]}  b6 {[%clk 0:02:29]} 8. Be4 {[%clk 0:02:50]}  c6 {[%clk 0:02:29]} 9. O-O {[%clk 0:02:50]}  Qc7 {[%clk 0:02:28]} 10. c4 {[%clk 0:02:50]}  Bb7 {[%clk 0:02:28]} 11. Re1 {[%clk 0:02:50]}  f5 {[%clk 0:02:27]} 12. Bd3 {[%clk 0:02:48]}  Nd7 {[%clk 0:02:26]} 13. Qe2 {[%clk 0:02:44]}  O-O-O {[%clk 0:02:22]} 14. Bd2 {[%clk 0:02:39]}  Bf6 {[%clk 0:02:14]} 15. Rac1 {[%clk 0:02:36]}  c5 {[%clk 0:02:00]} 16. d5 {[%clk 0:02:21]}  Rhe8 {[%clk 0:01:58]} 17. Bg5 {[%clk 0:02:14]}  Qd6 {[%clk 0:01:36]} 18. Bxf6 {[%clk 0:02:01]}  Nxf6 {[%clk 0:01:37]} 19. Ne5 {[%clk 0:01:50]}  exd5 {[%clk 0:01:33]} 20. cxd5 {[%clk 0:01:37]}  Qxd5 {[%clk 0:01:21]} 21. Bxf5+ {[%clk 0:01:35]}  Kb8 {[%clk 0:01:22]} 22. Bh3 {[%clk 0:01:36]}  Ne4 {[%clk 0:00:57]} 23. Nc4 {[%clk 0:01:10]}  Nd6 {[%clk 0:00:51]} 24. Ne3 {[%clk 0:01:07]}  Qxa2 {[%clk 0:00:47]} 25. Rcd1 {[%clk 0:00:50]}  Qa4 {[%clk 0:00:42]} 26. Qh5 {[%clk 0:00:43]}  Qe4 {[%clk 0:00:35]} 27. Qh6 {[%clk 0:00:34]}  Qg6 {[%clk 0:00:34]} 28. Qf4 {[%clk 0:00:31]}  Re4 {[%clk 0:00:34]} 29. Qg3 {[%clk 0:00:25]}  Qxg3 {[%clk 0:00:30]} 30. hxg3 {[%clk 0:00:26]}  Kc7 {[%clk 0:00:30]} 31. Rd2 {[%clk 0:00:19]}  Nb5 {[%clk 0:00:21]} 32. Rxd8 {[%clk 0:00:11]}  Kxd8 {[%clk 0:00:22]} 33. Rd1+ {[%clk 0:00:11]}  Ke7 {[%clk 0:00:21]} 34. Nf5+ {[%clk 0:00:10]}  Kf6 {[%clk 0:00:21]} 35. Rd7 {[%clk 0:00:10]}  Bc8 {[%clk 0:00:20]} 36. Rd5 {[%clk 0:00:05]}  Be6 {[%clk 0:00:20]} 37. Nd6 {[%clk 0:00:02]}  Re1+ {[%clk 0:00:18]} 38. Kh2 {[%clk 0:00:02]}  Bxd5 {[%clk 0:00:18]} 39. Nxb5 {[%clk 0:00:03]}  Re2 {[%clk 0:00:19]} 40. Nc3 {[%clk 0:00:03]}  Rd2 {[%clk 0:00:17]} 41. Bg4 {[%clk 0:00:03]}  Be6 {[%clk 0:00:18]} 42. Ne4+ {[%clk 0:00:03]}  Ke5 {[%clk 0:00:18]} 43. Nxd2 {[%clk 0:00:04]}  Bxg4 {[%clk 0:00:18]} 44. Nc4+ {[%clk 0:00:04]}  Kd4 {[%clk 0:00:19]} 45. Ne3 {[%clk 0:00:04]}  Be6 {[%clk 0:00:19]} 46. g4 {[%clk 0:00:03]}  b5 {[%clk 0:00:18]} 47. Kg3 {[%clk 0:00:04]}  a5 {[%clk 0:00:19]} 48. Kf4 {[%clk 0:00:04]}  b4 {[%clk 0:00:19]} 49. g5 {[%clk 0:00:04]}  a4 {[%clk 0:00:19]} 50. Kf3 {[%clk 0:00:04]}  Kd3 {[%clk 0:00:20]} 51. Kf4 {[%clk 0:00:01]}  a3 {[%clk 0:00:20]} 52. bxa3 {[%clk 0:00:02]}  bxa3 {[%clk 0:00:21]} 53. Ke5 {[%clk 0:00:01]}  a2 {[%clk 0:00:21]} 54. Kf4 {[%clk 0:00:01]}  a1=Q {[%clk 0:00:21]} 55. g4 {[%clk 0:00:01]}  Qa4+ {[%clk 0:00:22]} 56. Kg3 {[%clk 0:00:02]}  Qe4 {[%clk 0:00:23]} 0-1


[Site "https://www.chess.com"]

[Event "Titled Tuesday Blitz January 17 Late 2023"]
[White "Andreev, Eduard"]
[Black "Sanchez, Robert"]
[WhiteFideId "14103400"]
[BlackFideId "2034360"]
[WhiteElo "2413"]
[BlackElo "1966"]
[Result "1/2-1/2"]
[Round "06"]
[TimeControl "180+2"]
[Date "2023.01.17"]
[WhiteClock "0:00:15"]
[BlackClock "0:00:13"]

1. e4 {[%clk 0:03:00]}  e6 {[%clk 0:02:58]} 2. d3 {[%clk 0:02:57]}  c5 {[%clk 0:02:57]} 3. Nd2 {[%clk 0:02:56]}  Nc6 {[%clk 0:02:58]} 4. Ngf3 {[%clk 0:02:56]}  g6 {[%clk 0:02:58]} 5. g3 {[%clk 0:02:53]}  Bg7 {[%clk 0:02:59]} 6. Bg2 {[%clk 0:02:53]}  Nge7 {[%clk 0:02:59]} 7. O-O {[%clk 0:02:53]}  O-O {[%clk 0:02:59]} 8. Re1 {[%clk 0:02:42]}  d6 {[%clk 0:02:58]} 9. a4 {[%clk 0:02:40]}  e5 {[%clk 0:02:57]} 10. Nc4 {[%clk 0:02:36]}  h6 {[%clk 0:02:56]} 11. Be3 {[%clk 0:02:27]}  f5 {[%clk 0:02:54]} 12. Qc1 {[%clk 0:02:23]}  Kh7 {[%clk 0:02:53]} 13. h4 {[%clk 0:02:18]}  Be6 {[%clk 0:02:44]} 14. h5 {[%clk 0:02:14]}  f4 {[%clk 0:02:36]} 15. gxf4 {[%clk 0:02:12]}  exf4 {[%clk 0:02:35]} 16. Bxf4 {[%clk 0:02:12]}  Bxc4 {[%clk 0:02:30]} 17. dxc4 {[%clk 0:02:11]}  g5 {[%clk 0:02:28]} 18. Bxg5 {[%clk 0:02:05]}  hxg5 {[%clk 0:02:27]} 19. Nxg5+ {[%clk 0:02:06]}  Kh8 {[%clk 0:02:24]} 20. Ne6 {[%clk 0:02:04]}  Qe8 {[%clk 0:02:13]} 21. Nxf8 {[%clk 0:01:35]}  Qxf8 {[%clk 0:02:06]} 22. c3 {[%clk 0:01:20]}  Ne5 {[%clk 0:01:53]} 23. Qg5 {[%clk 0:01:10]}  Bh6 {[%clk 0:01:49]} 24. Qg3 {[%clk 0:01:07]}  Qf6 {[%clk 0:01:41]} 25. Kf1 {[%clk 0:01:01]}  Rg8 {[%clk 0:01:39]} 26. Qh3 {[%clk 0:00:59]}  Rf8 {[%clk 0:01:17]} 27. Re2 {[%clk 0:00:54]}  Nxc4 {[%clk 0:01:08]} 28. Rd1 {[%clk 0:00:53]}  Ne3+ {[%clk 0:01:06]} 29. Ke1 {[%clk 0:00:46]}  Nxd1 {[%clk 0:01:06]} 30. Kxd1 {[%clk 0:00:47]}  Nc6 {[%clk 0:01:02]} 31. Qd7 {[%clk 0:00:43]}  Ne5 {[%clk 0:00:53]} 32. Qxb7 {[%clk 0:00:39]}  Qg5 {[%clk 0:00:51]} 33. f4 {[%clk 0:00:29]}  Qxf4 {[%clk 0:00:49]} 34. Kc2 {[%clk 0:00:22]}  Qc1+ {[%clk 0:00:45]} 35. Kb3 {[%clk 0:00:22]}  Qd1+ {[%clk 0:00:38]} 36. Rc2 {[%clk 0:00:21]}  c4+ {[%clk 0:00:38]} 37. Ka3 {[%clk 0:00:18]}  Qxc2 {[%clk 0:00:37]} 38. Bh3 {[%clk 0:00:17]}  Qb3+ {[%clk 0:00:33]} 39. Qxb3 {[%clk 0:00:16]}  cxb3 {[%clk 0:00:34]} 40. Kxb3 {[%clk 0:00:17]}  Rb8+ {[%clk 0:00:32]} 41. Kc2 {[%clk 0:00:17]}  Nc4 {[%clk 0:00:27]} 42. b3 {[%clk 0:00:16]}  Ne5 {[%clk 0:00:27]} 43. Bf5 {[%clk 0:00:15]}  Kg7 {[%clk 0:00:27]} 44. b4 {[%clk 0:00:16]}  Kf6 {[%clk 0:00:26]} 45. Kb3 {[%clk 0:00:16]}  d5 {[%clk 0:00:27]} 46. a5 {[%clk 0:00:15]}  a6 {[%clk 0:00:26]} 47. Kc2 {[%clk 0:00:15]}  Rg8 {[%clk 0:00:20]} 48. Bh7 {[%clk 0:00:12]}  Rg2+ {[%clk 0:00:19]} 49. Kb3 {[%clk 0:00:13]}  dxe4 {[%clk 0:00:18]} 50. Bxe4 {[%clk 0:00:13]}  Rg7 {[%clk 0:00:17]} 51. Bd5 {[%clk 0:00:11]}  Rc7 {[%clk 0:00:17]} 52. c4 {[%clk 0:00:10]}  Ke7 {[%clk 0:00:16]} 53. b5 {[%clk 0:00:10]}  Kd6 {[%clk 0:00:15]} 54. b6 {[%clk 0:00:09]}  Rc8 {[%clk 0:00:14]} 55. Bb7 {[%clk 0:00:09]}  Rb8 {[%clk 0:00:09]} 56. Bxa6 {[%clk 0:00:07]}  Kc5 {[%clk 0:00:09]} 57. Bb5 {[%clk 0:00:05]}  Nc6 {[%clk 0:00:09]} 58. Ka4 {[%clk 0:00:05]}  Ra8 {[%clk 0:00:07]} 59. b7 {[%clk 0:00:01]}  Rxa5+ {[%clk 0:00:06]} 60. Kb3 {[%clk 0:00:02]}  Rxb5+ {[%clk 0:00:04]} 61. cxb5 {[%clk 0:00:03]}  Kxb5 {[%clk 0:00:04]} 62. b8=Q+ {[%clk 0:00:03]}  Nxb8 {[%clk 0:00:05]} 63. Kc2 {[%clk 0:00:03]}  Kc5 {[%clk 0:00:05]} 64. Kd3 {[%clk 0:00:04]}  Kd5 {[%clk 0:00:06]} 65. Ke2 {[%clk 0:00:05]}  Ke5 {[%clk 0:00:06]} 66. Kf3 {[%clk 0:00:06]}  Kf5 {[%clk 0:00:07]} 67. Kg3 {[%clk 0:00:06]}  Kg5 {[%clk 0:00:08]} 68. Kf3 {[%clk 0:00:07]}  Kxh5 {[%clk 0:00:09]} 69. Ke4 {[%clk 0:00:07]}  Kg5 {[%clk 0:00:09]} 70. Kd5 {[%clk 0:00:08]}  Nd7 {[%clk 0:00:09]} 71. Kd6 {[%clk 0:00:08]}  Nf6 {[%clk 0:00:10]} 72. Ke6 {[%clk 0:00:07]}  Kg6 {[%clk 0:00:10]} 73. Kd6 {[%clk 0:00:06]}  Bf8+ {[%clk 0:00:10]} 74. Ke6 {[%clk 0:00:07]}  Kg7 {[%clk 0:00:10]} 75. Ke5 {[%clk 0:00:07]}  Kf7 {[%clk 0:00:10]} 76. Kf5 {[%clk 0:00:08]}  Be7 {[%clk 0:00:11]} 77. Ke5 {[%clk 0:00:09]}  Nd7+ {[%clk 0:00:09]} 78. Kd5 {[%clk 0:00:09]}  Kf6 {[%clk 0:00:09]} 79. Ke4 {[%clk 0:00:09]}  Ke6 {[%clk 0:00:09]} 80. Kd4 {[%clk 0:00:09]}  Bd6 {[%clk 0:00:09]} 81. Ke4 {[%clk 0:00:10]}  Nf6+ {[%clk 0:00:09]} 82. Kd4 {[%clk 0:00:09]}  Be5+ {[%clk 0:00:09]} 83. Kc4 {[%clk 0:00:07]}  Kd6 {[%clk 0:00:09]} 84. Kd3 {[%clk 0:00:08]}  Kd5 {[%clk 0:00:10]} 85. Ke3 {[%clk 0:00:08]}  Bb2 {[%clk 0:00:08]} 86. Kf4 {[%clk 0:00:08]}  Ke6 {[%clk 0:00:08]} 87. Ke3 {[%clk 0:00:08]}  Kf5 {[%clk 0:00:09]} 88. Kd3 {[%clk 0:00:08]}  Be5 {[%clk 0:00:08]} 89. Ke3 {[%clk 0:00:08]}  Ng4+ {[%clk 0:00:08]} 90. Kf3 {[%clk 0:00:07]}  Bf4 {[%clk 0:00:07]} 91. Kg2 {[%clk 0:00:05]}  Ke4 {[%clk 0:00:05]} 92. Kh3 {[%clk 0:00:04]}  Kf3 {[%clk 0:00:04]} 93. Kh4 {[%clk 0:00:03]}  Bc1 {[%clk 0:00:03]} 94. Kh5 {[%clk 0:00:04]}  Kf4 {[%clk 0:00:02]} 95. Kg6 {[%clk 0:00:05]}  Ke4 {[%clk 0:00:02]} 96. Kf7 {[%clk 0:00:05]}  Ne5+ {[%clk 0:00:02]} 97. Ke6 {[%clk 0:00:06]}  Nc4 {[%clk 0:00:03]} 98. Kd7 {[%clk 0:00:06]}  Nd2 {[%clk 0:00:04]} 99. Kc6 {[%clk 0:00:07]}  Kd3 {[%clk 0:00:05]} 100. Kb5 {[%clk 0:00:08]}  Kc2 {[%clk 0:00:05]} 101. Kc5 {[%clk 0:00:09]}  Kb2 {[%clk 0:00:05]} 102. Kd5 {[%clk 0:00:09]}  Kb1 {[%clk 0:00:05]} 103. Ke5 {[%clk 0:00:10]}  Bb2+ {[%clk 0:00:05]} 104. Kd5 {[%clk 0:00:10]}  Kc1 {[%clk 0:00:06]} 105. Kc5 {[%clk 0:00:10]}  Kd1 {[%clk 0:00:07]} 106. Kd5 {[%clk 0:00:10]}  Bc1 {[%clk 0:00:08]} 107. Kc5 {[%clk 0:00:11]}  Nb1 {[%clk 0:00:09]} 108. Kd5 {[%clk 0:00:12]}  Kd2 {[%clk 0:00:10]} 109. Kc5 {[%clk 0:00:13]}  Kd1 {[%clk 0:00:11]} 110. Kd5 {[%clk 0:00:14]}  Kd2 {[%clk 0:00:12]} 111. Kc5 {[%clk 0:00:15]}  Kd1 {[%clk 0:00:13]} 1/2-1/2


[Site "https://www.chess.com"]